fUSD/lending_fUSD_20240116
["ID","MTS","AMOUNT","RATE_DAILY","PERIOD"]
[311807662,1705420719748,-1812.01626527,0.0004,120]
[311807663,1705420719770,-500.0,0.0004,30]
[311807664,1705420719792,-500.0,0.0004,30]
[311807665,1705420719814,-500.0,0.0004,30]
[311807666,1705420720038,-500.0,0.0004,30]
[311807667,1705420720069,-500.0,0.0004,30]
[311807668,1705420720091,-516.63,0.0004,30]
[311807669,1705420720114,-216.26946856,0.0004,120]
[311807670,1705420720137,-400.0,0.0004,120]
[311807671,1705420720159,-152.0,0.0004,30]
[311807672,1705420720180,-302.66,0.0004,30]
[311807673,1705420720206,-347.53189057,0.0004,30]
[311807674,1705420720228,-326.09189866,0.0004,30]
[311807675,1705420720251,-350.0,0.0004,120]
[311807676,1705420720274,-2015.0,0.0004,30]
[311807677,1705420720296,-2000.0,0.0004,30]
[311807678,1705420720318,-210.85127222,0.0004,30]
[311807679,1705420720340,-200.0,0.0004,30]
[311807680,1705420720363,-705.76,0.00040368,60]
[311807681,1705420720385,-150.0,0.00040439,120]
[311807682,1705420720407,-172.0,0.0004044,50]
[311807683,1705420720429,-2500.0,0.0004048,40]
[311807684,1705420720457,-5000.0,0.000405,35]
[311807685,1705420720480,-705.76,0.00040633,60]
[311807686,1705420720502,-150.0,0.00040709,120]
[311807687,1705420720527,-705.76,0.00040898,60]
[311807688,1705420720549,-400.0,0.00040932,120]
[311807689,1705420720572,-350.0,0.00040986,120]
[311807690,1705420720595,-432.48910772,0.00041,30]
[311807691,1705420720619,-1000.0,0.00041,120]
[311807692,1705420720641,-300.0,0.00041,42]
[311807693,1705420720663,-57392.22079248,0.00041,30]
[311807694,1705420720685,-384.32618362,0.00041042,100]
[311807695,1705420720709,-510.0,0.00041095,120]
[311807696,1705420720731,-500.0,0.00041095,30]
[311807697,1705420720759,-705.76,0.00041163,60]
[311807698,1705420720782,-510.0,0.00041369,120]
[311807699,1705420720804,-1000.0,0.0004137,120]
[311807700,1705420720826,-1000.0,0.0004137,120]
[311807701,1705420720849,-705.76,0.00041428,60]
[311807702,1705420720871,-150.0,0.00041432,120]
[311807703,1705420720893,-2500.0,0.0004148,41]
[311807704,1705420720917,-1208.0,0.00041482,30]
[311807705,1705420720939,-5000.0,0.000415,35]
[311807706,1705420720963,-510.0,0.00041643,120]
[311807707,1705420720986,-500.0,0.00041643,30]
[311807708,1705420721008,-705.76,0.00041693,60]
[311807709,1705420721030,-1000.0,0.000418,30]
[311807710,1705420721052,-999.999999,0.000418,30]
[311807711,1705420721073,-185.43099602,0.000418,30]
[311807712,1705420721095,-400.0,0.00041863,120]
[311807713,1705420721119,-3427.87811735,0.000419,45]
[311807714,1705420721141,-1337.50094142,0.000419,60]
[311807715,1705420721163,-510.0,0.00041917,120]
[311807716,1705420721186,-705.76,0.00041958,60]
[311807717,1705420721209,-350.0,0.00041973,120]
[311807718,1705420721230,-2051.0,0.0004199,30]
[311807719,1705420721252,-501.50467123,0.00042,30]
[311807720,1705420721274,-301.47527822,0.00042,120]
[311807721,1705420721295,-1569.92127102,0.00042,120]
[311807722,1705420721316,-1601.23609337,0.00042,60]
[311807723,1705420721337,-157.7778205,0.00042,120]
[311807724,1705420721365,-620.0,0.00042,120]
[311807725,1705420721389,-197.42915056,0.00042,30]
[311807726,1705420721410,-866.95353583,0.00042,120]
[311807727,1705420721431,-360.7,0.00042,30]
[311807728,1705420721455,-2000.0,0.00042,90]
[311807729,1705420721477,-300.0,0.00042,43]
[311807730,1705420721499,-1420.19033504,0.00042,30]
[311807731,1705420721524,-3118.0,0.00042,90]
[311807732,1705420721545,-577.0,0.00042,120]
[311807733,1705420721567,-1100.0,0.00042,30]
[311807734,1705420721590,-200.0,0.00042,30]
[311807735,1705420721614,-510.0,0.00042191,120]
[311807736,1705420721636,-500.0,0.00042191,30]
[311807737,1705420721659,-705.76,0.00042223,60]
[311807738,1705420721682,-150.0,0.00042323,120]
[311807739,1705420721706,-154.64682,0.00042345,30]
[311807740,1705420721727,-150.0,0.00042389,120]
[311807741,1705420721749,-183.0,0.0004246,54]
[311807742,1705420721771,-510.0,0.00042465,120]
[311807743,1705420721794,-2500.0,0.0004248,42]
[311807744,1705420721816,-200.0,0.000425,30]
[311807745,1705420721838,-213237.74458394,0.000425,30]
[311807746,1705420721860,-329422.9550938,0.000425,30]
[311807747,1705420721882,-348.01047431,0.00042546,120]
[311807748,1705420721904,-2317.17538154,0.00042687,30]
[311807749,1705420721926,-3886.0,0.000427,92]
[311807750,1705420721948,-701.59965022,0.00042725,90]
[311807751,1705420721970,-510.0,0.00042739,120]
[311807752,1705420721992,-500.0,0.00042739,30]
[311807753,1705420722014,-400.0,0.00042795,120]
[311807754,1705420722036,-881.42335289,0.000429,30]
[311807755,1705420722058,-350.0,0.00042959,120]
[311807756,1705420722081,-788.67878306,0.0004299,120]
[311807757,1705420722103,-1886.98397568,0.0004299,30]
[311807758,1705420722127,-458.64901186,0.00043,120]
[311807759,1705420722149,-8400.36748334,0.00043,120]
[311807760,1705420722170,-2590.1482052,0.00043,120]
[311807761,1705420722191,-1000.0,0.00043,120]
[311807762,1705420722214,-300.0,0.00043,44]
[311807763,1705420722236,-1000.0,0.00043,31]
[311807764,1705420722258,-15586.53,0.00043,30]
[311807765,1705420722280,-738.0,0.00043,30]
[311807766,1705420722302,-510.0,0.00043013,120]
[311807767,1705420722323,-1100.0,0.00043014,30]
[311807768,1705420722540,-399.6307133,0.000432,60]
[311807769,1705420722566,-252.61428845,0.00043287,30]
[311807770,1705420722587,-510.0,0.00043287,120]
[311807771,1705420722609,-201.42591571,0.000433,30]
[311807772,1705420722631,-300.0,0.000433,120]
[311807773,1705420722652,-184.02601921,0.00043381,30]
[311807774,1705420722674,-150.0,0.00043449,120]
[311807775,1705420722698,-2500.0,0.0004348,43]
[311807776,1705420722719,-314.14975049,0.00043481,30]
[311807777,1705420722741,-473.22007293,0.00043481,30]
[311807778,1705420722763,-345.49514884,0.00043481,30]
[311807779,1705420722784,-5000.0,0.00043481,30]
[311807780,1705420722806,-5000.0,0.00043481,30]
[311807781,1705420722827,-3980.4547733,0.00043481,30]
[311807782,1705420722849,-1956.49286876,0.00043495,30]
[311807783,1705420722873,-1254.43917064,0.000435,120]
[311807784,1705420722895,-510.0,0.00043561,120]
[311807785,1705420722918,-500000.0,0.000437,31]
[311807786,1705420722940,-400.0,0.00043726,120]
[311807787,1705420722963,-512.99445814,0.00043798,60]
[311807788,1705420722985,-1267.42483054,0.00043798,60]
[311807789,1705420723007,-38892.19965144,0.000438,30]
[311807790,1705420723029,-1508.47667159,0.00043835,30]
[311807791,1705420723051,-1500.0,0.00043835,30]
[311807792,1705420723072,-1500.0,0.00043835,30]
[311807793,1705420723094,-3000.0,0.00043835,120]
[311807794,1705420723115,-510.0,0.00043835,120]
[311807795,1705420723137,-5000.0,0.00043835,30]
[311807796,1705420723160,-2000.00000099,0.00043848,31]
[311807797,1705420723183,-6852.41677219,0.00043856,45]
[311807798,1705420723208,-1234.3869154,0.00043858,45]
[311807799,1705420723231,-200.0,0.00043869,45]
[311807800,1705420723254,-1234.3869154,0.00043878,45]
[311807801,1705420723277,-6852.41677219,0.0004388,45]
[311807802,1705420723298,-260.74424987,0.00043881,45]
[311807803,1705420723320,-260.74424987,0.00043881,45]
[311807804,1705420723343,-1234.3869154,0.00043882,45]
[311807805,1705420723364,-200.0,0.00043894,45]
[311807806,1705420723386,-260.74424987,0.00043894,45]
[311807807,1705420723409,-6852.41677219,0.00043895,45]
[311807808,1705420723433,-225.0,0.000439,30]
[311807809,1705420723457,-150501.4335864,0.0004393,30]
[311807810,1705420723485,-350.0,0.00043945,120]
[311807811,1705420723510,-191.43135924,0.00043958,30]
[311807812,1705420723534,-291.49229631,0.00043958,30]
[311807813,1705420723559,-9636.21108593,0.0004396,30]
[311807814,1705420723583,-9636.21108593,0.0004396,30]
[311807815,1705420723607,-1735.85659983,0.00043965,30]
[311807816,1705420723631,-1735.85659983,0.0004397,30]
[311807817,1705420723654,-366.67160142,0.00043971,30]
[311807818,1705420723678,-348.24250397,0.00043972,35]
[311807819,1705420723704,-150.0,0.00043973,120]
[311807820,1705420723727,-366.67160142,0.00043973,30]
[311807821,1705420723750,-219.29256871,0.00043973,30]
[311807822,1705420723774,-366.67160142,0.00043979,30]
[311807823,1705420723797,-9636.21108593,0.00043979,30]
[311807824,1705420723820,-219.29256871,0.0004398,30]
[311807825,1705420723845,-2876.70442618,0.0004398,44]
[311807826,1705420723870,-366.67160142,0.00043981,30]
[311807827,1705420723893,-9636.21108593,0.00043984,30]
[311807828,1705420723916,-1735.85659983,0.00043986,30]
[311807829,1705420723940,-330053.85465034,0.0004399,30]
[311807830,1705420725997,183.33,0.00021396,2]
[311807831,1705420727955,3186.46864652,0.0002151,2]
[311807832,1705420730069,-137219.14651553,0.0004399,30]
[311807833,1705420730094,-219.29256871,0.00043995,30]
[311807834,1705420730117,-219.29256871,0.00043996,30]
[311807835,1705420730146,-1735.85659983,0.00043997,30]
[311807836,1705420730172,-33494.64423835,0.00043999,120]
[311807837,1705420730199,-299.26988173,0.00044,120]
[311807838,1705420730224,-300.0,0.00044,45]
[311807839,1705420730249,-7605.76351157,0.00044,42]
[311807840,1705420730273,-5200.0,0.00044,30]
[311807841,1705420730297,-5200.0,0.00044,31]
[311807842,1705420730321,-5200.0,0.00044,32]
[311807843,1705420730344,-953.44186601,0.00044,30]
[311807844,1705420730369,-323.37624989,0.00044,30]
[311807845,1705420730392,-1757.43364242,0.00044,30]
[311807846,1705420730414,-516.90416731,0.00044,120]
[311807847,1705420730731,-184.78924776,0.00044,60]
[311807848,1705420730755,-400.05296645,0.00044,30]
[311807849,1705420730777,-185.81050148,0.00044,30]
[311807850,1705420730800,-11747.16570512,0.00044,120]
[311807851,1705420730824,-1000.0,0.00044,120]
[311807852,1705420730848,-150.0,0.00044,120]
[311807853,1705420730871,-4007.53954221,0.00044,30]
[311807854,1705420730894,-3542.7080927,0.00044,45]
[311807855,1705420730917,-185.0,0.00044,90]
[311807856,1705420730938,-200.0,0.00044,30]
[311807857,1705420730962,-293.0,0.00044,90]
[311807858,1705420730984,-1100.0,0.00044028,30]
[311807859,1705420731007,-290.0,0.00044097,120]
[311807860,1705420731029,-2000.0,0.000441,120]
[311807861,1705420731052,-2000.0,0.000441,120]
[311807862,1705420731074,-2000.0,0.000441,120]
[311807863,1705420731101,-2000.0,0.000441,120]
[311807864,1705420731125,-236.0,0.000441,30]
[311807865,1705420731148,-204.0,0.000441,30]
[311807866,1705420731171,-220.0,0.000441,30]
[311807867,1705420731195,-219.0,0.000441,30]
[311807868,1705420731222,-218.0,0.000441,30]
[311807869,1705420731244,-210.0,0.000441,30]
[311807870,1705420731268,-211.0,0.000441,30]
[311807871,1705420731291,-552.87396231,0.00044109,30]
[311807872,1705420731314,-510.0,0.00044109,120]
[311807873,1705420731337,-1736270.21570887,0.000442,45]
[311807874,1705420731366,-10000.0,0.000442,120]
[311807875,1705420731391,-2051.0,0.000442,30]
[311807876,1705420731418,-1060.38,0.00044383,30]
[311807877,1705420731445,-510.0,0.00044383,120]
[311807878,1705420731484,-599.65286909,0.000444,30]
[311807879,1705420731514,-2500.0,0.0004448,44]
[311807880,1705420731542,-1000.0,0.000445,120]
[311807881,1705420731570,-478.37083272,0.00044575,30]
[311807882,1705420731596,-184.62945246,0.00044575,30]
[311807883,1705420731625,-395.77482715,0.00044575,30]
[311807884,1705420731651,-618.68926439,0.00044575,30]
[311807885,1705420731676,-500.0,0.00044575,30]
[311807886,1705420731701,-514.14076361,0.00044575,30]
[311807887,1705420731724,-500.0,0.00044575,30]
[311807888,1705420731749,-500.0,0.00044575,30]
[311807889,1705420731773,-500.0,0.00044575,30]
[311807890,1705420731798,-500.0,0.00044575,30]
[311807891,1705420731823,-500.0,0.00044575,30]
[311807892,1705420731847,-156.35420721,0.00044575,30]
[311807893,1705420731875,-500.0,0.00044575,30]
[311807894,1705420731899,-260.76590269,0.00044575,30]
[311807895,1705420731924,-500.0,0.00044575,30]
[311807896,1705420731948,-500.0,0.00044575,30]
[311807897,1705420731971,-500.0,0.00044575,30]
[311807898,1705420731995,-500.0,0.00044575,30]
[311807899,1705420732020,-500.0,0.00044575,30]
[311807900,1705420732046,-500.0,0.00044575,30]
[311807901,1705420732070,-500.0,0.00044575,30]
[311807902,1705420732095,-500.0,0.00044575,30]
[311807903,1705420732121,-500.0,0.00044575,30]
[311807904,1705420732145,-500.0,0.00044575,30]
[311807905,1705420732170,-500.0,0.00044575,30]
[311807906,1705420732195,-288.66434372,0.00044575,30]
[311807907,1705420732780,401.90417909,0.00020975,2]
[311807908,1705420735377,623.53270325,0.0002151,2]
[311807909,1705420737568,565.9057501,0.00019941,2]
[311807910,1705420738532,-372.26823252,0.0004,30]
[311807911,1705420738556,-3229.04260055,0.0004,30]
[311807912,1705420738603,-1100.0,0.00042,30]
[311807913,1705420738632,-20329.43615097,0.00043,120]
[311807914,1705420738654,-1100.0,0.00043014,30]
[311807915,1705420738682,-1100.0,0.00044028,30]
[311807916,1705420738706,-150.0,0.000442,30]
[311807917,1705420738731,-211.33565628,0.00044575,30]
[311807918,1705420738754,-495.12165618,0.00044575,30]
[311807919,1705420738777,-500.0,0.00044575,30]
[311807920,1705420738801,-500.0,0.00044575,30]
[311807921,1705420738832,-500.0,0.00044575,30]
[311807922,1705420738856,-172.03969278,0.00044575,30]
[311807923,1705420738878,-500.0,0.00044575,30]
[311807924,1705420738902,-634.71262846,0.00044575,30]
[311807925,1705420738926,-520.61118096,0.00044575,30]
[311807926,1705420738950,-520.61118096,0.00044575,30]
[311807927,1705420738973,-520.61118096,0.00044575,30]
[311807928,1705420738996,-520.61118096,0.00044575,30]
[311807929,1705420739020,-520.61118096,0.00044575,30]
[311807930,1705420739046,-520.61118096,0.00044575,30]
[311807931,1705420739069,-520.61118096,0.00044575,30]
[311807932,1705420739091,-520.61118096,0.00044575,30]
[311807933,1705420739115,-1253.50896135,0.00044575,30]
[311807934,1705420739138,-434.00584534,0.00044575,30]
[311807935,1705420739162,-1253.50896135,0.00044575,30]
[311807936,1705420739185,-1253.50896135,0.00044575,30]
[311807937,1705420739208,-1253.50896135,0.00044575,30]
[311807938,1705420739231,-1253.50896135,0.00044575,30]
[311807939,1705420739260,-563.6223141,0.00044575,30]
[311807940,1705420739283,-249.92728693,0.00044575,30]
[311807941,1705420739305,-375.57129174,0.00044575,30]
[311807942,1705420739328,-189.46204051,0.00044575,30]
[311807943,1705420739351,-257.77113723,0.00044575,30]
[311807944,1705420739373,-174.62501332,0.00044575,30]
[311807945,1705420739397,-200.0,0.00044575,30]
[311807946,1705420739424,-198.86449101,0.00044575,30]
[311807947,1705420739447,-172.26398812,0.00044575,30]
[311807948,1705420739471,-500.0,0.00044575,30]
[311807949,1705420739494,-311.92442902,0.00044575,30]
[311807950,1705420739518,-248.27952754,0.00044575,30]
[311807951,1705420739542,-152.34793022,0.00044575,30]
[311807952,1705420739568,-831.69140628,0.00044575,30]
[311807953,1705420739594,-555.26592999,0.00044575,30]
[311807954,1705420739621,-555.26592999,0.00044575,30]
[311807955,1705420739645,-555.26592999,0.00044575,30]
[311807956,1705420739669,-555.26592999,0.00044575,30]
[311807957,1705420739697,-831.69140628,0.00044575,30]
[311807958,1705420739723,-831.69140628,0.00044575,30]
[311807959,1705420739748,-831.69140628,0.00044575,30]
[311807960,1705420739773,-831.69140628,0.00044575,30]
[311807961,1705420739797,-555.26592999,0.00044575,30]
[311807962,1705420739821,-831.69140628,0.00044575,30]
[311807963,1705420739846,-831.69140628,0.00044575,30]
[311807964,1705420740111,-555.26592999,0.00044575,30]
[311807965,1705420740136,-555.26592999,0.00044575,30]
[311807966,1705420740160,-555.26592999,0.00044575,30]
[311807967,1705420740184,-831.69140628,0.00044575,30]
[311807968,1705420740208,-311.05318598,0.00044575,30]
[311807969,1705420740232,-314.19453125,0.00044575,30]
[311807970,1705420740254,-214.0,0.000446,30]
[311807971,1705420740277,-1060.38,0.00044657,30]
[311807972,1705420740299,-510.0,0.00044657,120]
[311807973,1705420740322,-400.0,0.00044658,120]
[311807974,1705420740345,-185.0,0.00044676,90]
[311807975,1705420740368,-293.0,0.00044687,90]
[311807976,1705420740391,-477.12480838,0.0004475,30]
[311807977,1705420740413,-10121.9438,0.000448,30]
[311807978,1705420740436,-1664.47081754,0.000449,30]
[311807979,1705420740458,-90000.0,0.000449,30]
[311807980,1705420740481,-20746.87094143,0.000449,120]
[311807981,1705420740503,-1060.38,0.00044931,30]
[311807982,1705420740526,-510.0,0.00044931,120]
[311807983,1705420740555,-350.0,0.00044932,120]
[311807984,1705420740577,-187.60069709,0.0004495,120]
[311807985,1705420740599,-196.04784918,0.0004495,120]
[311807986,1705420740625,-321.17364832,0.00044999,30]
[311807987,1705420740648,-1505.68693096,0.00045,120]
[311807988,1705420740671,-944.64209766,0.00045,30]
[311807989,1705420740693,-500.20876416,0.00045,120]
[311807990,1705420740717,-160.00224162,0.00045,120]
[311807991,1705420740739,-156.22857389,0.00045,30]
[311807992,1705420740762,-1500.0,0.00045,60]
[311807993,1705420740784,-150.999998,0.00045,120]
[311807994,1705420740807,-460.58914625,0.00045,30]
[311807995,1705420740830,-259.94276752,0.00045,120]
[311807996,1705420740853,-1000.53,0.00045,120]
[311807997,1705420740876,-1200.0,0.00045,120]
[311807998,1705420740898,-1074.0,0.00045,120]
[311807999,1705420740920,-1346.0,0.00045,30]
[311808000,1705420740942,-30052.45009945,0.00045,120]
[311808001,1705420740965,-1000.0,0.00045,45]
[311808002,1705420740989,-1000.0,0.00045,45]
[311808003,1705420741012,-1000.0,0.00045,45]
[311808004,1705420741035,-1000.0,0.00045,45]
[311808005,1705420741057,-1000.0,0.00045,45]
[311808006,1705420741080,-160.15,0.00045,60]
[311808007,1705420741102,-215.36173792,0.00045,120]
[311808008,1705420741124,-393000.0,0.00045,30]
[311808009,1705420741148,-4558.0,0.00045,120]
[311808010,1705420741173,-10000.0,0.00045,30]
[311808011,1705420741195,-200.0,0.00045,30]
[311808012,1705420741219,-1400.0,0.00045,60]
[311808013,1705420741244,-23485.03961456,0.00045,30]
[311808014,1705420741267,-663.75657445,0.00045,120]
[311808015,1705420741296,-13711.1983908,0.00045,30]
[311808016,1705420741319,-500.0,0.00045,120]
[311808017,1705420741344,-849.999999,0.00045,120]
[311808018,1705420741366,-176.49833098,0.00045,60]
[311808019,1705420741390,-2968.20630441,0.00045,30]
[311808020,1705420741413,-4017.5807287,0.00045,30]
[311808021,1705420741439,-187.06520268,0.00045,30]
[311808022,1705420741464,-213.81714361,0.00045,90]
[311808023,1705420741488,-2500.0,0.00045,30]
[311808024,1705420741511,-9828.0,0.00045,60]
[311808025,1705420741538,-5000.0,0.00045,120]
[311808026,1705420741562,-5000.0,0.00045,120]
[311808027,1705420741585,-5000.0,0.00045,120]
[311808028,1705420741610,-5000.0,0.00045,120]
[311808029,1705420741633,-5000.0,0.00045,120]
[311808030,1705420741656,-5000.0,0.00045,120]
[311808031,1705420741678,-5000.0,0.00045,120]
[311808032,1705420741701,-5000.0,0.00045,120]
[311808033,1705420741726,-5000.0,0.00045,120]
[311808034,1705420741748,-5000.0,0.00045,120]
[311808035,1705420741771,-5000.0,0.00045,120]
[311808036,1705420741793,-57200.0,0.00045,30]
[311808037,1705420741817,-458.0,0.00045,60]
[311808038,1705420741841,-299.0,0.00045,120]
[311808039,1705420741865,-3162.83439973,0.00045,30]
[311808040,1705420741888,-765.22212708,0.00045,30]
[311808041,1705420741911,-186.0,0.00045,120]
[311808042,1705420741935,-20818.31754558,0.00045,60]
[311808043,1705420741958,-3000.0,0.00045,30]
[311808044,1705420741981,-300.0,0.00045,46]
[311808045,1705420742004,-329.19352002,0.00045,30]
[311808046,1705420742034,-7925.05737965,0.00045,60]
[311808047,1705420742058,-500000.0,0.00045,50]
[311808048,1705420742082,-5000.0,0.00045,120]
[311808049,1705420742104,-7851.0,0.00045,120]
[311808050,1705420742130,-638385.46524474,0.00045,30]
[311808051,1705420742220,155.28225427,0.00020165,2]
[311808052,1705420742585,419.33476208,0.0002151,2]
[311808053,1705420742681,155.0,0.00020165,2]
[311808054,1705420751069,380.5707207,0.00022,2]
[311808055,1705420752003,-16631.67692645,0.000347,31]
[311808056,1705420752102,-156.59545547,0.0004,120]
[311808057,1705420752129,-639.4149492,0.0004,120]
[311808058,1705420752188,-2000.0,0.00045,60]
[311808059,1705420752215,-1000.0,0.00045,120]
[311808060,1705420752245,-3000.0,0.00045205,120]
[311808061,1705420752268,-510.0,0.00045205,120]
[311808062,1705420752293,-1000.0,0.00045234,31]
[311808063,1705420752316,-150.5930742,0.00045234,31]
[311808064,1705420752341,-484.12089936,0.00045479,120]
[311808065,1705420752371,-378.72,0.000455,60]
[311808066,1705420752395,-190.71,0.000455,45]
[311808067,1705420752662,-1000.0,0.000455,120]
[311808068,1705420752689,-400.0,0.00045589,120]
[311808069,1705420752712,-100000.0,0.000456,120]
[311808070,1705420752737,-150.0,0.00045612,120]
[311808071,1705420752761,-37936.72475753,0.000458,120]
[311808072,1705420752784,-66559.98222646,0.000458,120]
[311808073,1705420752807,-1000.0,0.000458,120]
[311808074,1705420752830,-542.84267162,0.0004588,100]
[311808075,1705420752855,-4274.6,0.0004591,111]
[311808076,1705420752878,-350.0,0.00045918,120]
[311808077,1705420752902,-150.0,0.00045989,120]
[311808078,1705420752934,-1000.0,0.00045999,120]
[311808079,1705420752957,-50584.65755901,0.00046,120]
[311808080,1705420752981,-176.49,0.00046,120]
[311808081,1705420753004,-9000.0,0.00046,120]
[311808082,1705420753031,-1000.0,0.00046,120]
[311808083,1705420753056,-589.0,0.00046,120]
[311808084,1705420753081,-300.0,0.00046,47]
[311808085,1705420753105,-60000.0,0.00046,120]
[311808086,1705420753130,-733.12246765,0.00046,45]
[311808087,1705420753154,-1000.0,0.00046055,120]
[311808088,1705420753178,-2000.0,0.0004606,120]
[311808089,1705420753201,-3000.0,0.0004616,31]
[311808090,1705420753230,-1000.0,0.00046234,120]
[311808091,1705420753256,-926.88002536,0.000463,120]
[311808092,1705420753280,-472.22358361,0.00046388,60]
[311808093,1705420753306,-535.61491123,0.000465,31]
[311808094,1705420753331,-1500.0,0.000465,60]
[311808095,1705420753354,-400.0,0.00046521,120]
[311808096,1705420753378,-42362.670232,0.00046548,120]
[311808097,1705420753408,-343960.771664,0.00046548,120]
[311808098,1705420753432,-4909.924533,0.00046548,120]
[311808099,1705420753458,-3623.366586,0.00046548,120]
[311808100,1705420753486,-32946.872065,0.00046548,120]
[311808101,1705420753513,-14026.975048,0.00046548,120]
[311808102,1705420753541,-50475.728796,0.00046548,120]
[311808103,1705420753565,-309.34463219,0.00046575,120]
[311808104,1705420753589,-239.18541636,0.00046575,120]
[311808105,1705420753615,-197.88741358,0.00046575,120]
[311808106,1705420753642,-500.0,0.00046575,120]
[311808107,1705420753668,-500.0,0.00046575,120]
[311808108,1705420753693,-507.07038181,0.00046575,120]
[311808109,1705420753719,-380.38295135,0.00046575,120]
[311808110,1705420753744,-500.0,0.00046575,120]
[311808111,1705420753769,-578.17710361,0.00046575,120]
[311808112,1705420753794,-500.0,0.00046575,120]
[311808113,1705420753819,-500.0,0.00046575,120]
[311808114,1705420753845,-389.59625761,0.00046575,120]
[311808115,1705420753871,-500.0,0.00046575,120]
[311808116,1705420753896,-497.56082809,0.00046575,120]
[311808117,1705420753921,-500.0,0.00046575,120]
[311808118,1705420753946,-500.0,0.00046575,120]
[311808119,1705420753971,-520.61118096,0.00046575,120]
[311808120,1705420753995,-520.61118096,0.00046575,120]
[311808121,1705420754023,-520.61118096,0.00046575,120]
[311808122,1705420754050,-520.61118096,0.00046575,120]
[311808123,1705420754075,-1566.88620168,0.00046575,120]
[311808124,1705420754102,-1566.88620168,0.00046575,120]
[311808125,1705420754127,-187.78564587,0.00046575,120]
[311808126,1705420754154,-349.4322455,0.00046575,120]
[311808127,1705420754178,-155.96221451,0.00046575,120]
[311808128,1705420754201,-8000.0,0.00046575,60]
[311808129,1705420754225,-2295.0760566,0.00046575,120]
[311808130,1705420754249,-555.26592999,0.00046575,120]
[311808131,1705420754273,-831.69140628,0.00046575,120]
[311808132,1705420754297,-555.26592999,0.00046575,120]
[311808133,1705420754322,-831.69140628,0.00046575,120]
[311808134,1705420754345,-555.26592999,0.00046575,120]
[311808135,1705420754370,-831.69140628,0.00046575,120]
[311808136,1705420754393,-831.69140628,0.00046575,120]
[311808137,1705420754419,-555.26592999,0.00046575,120]
[311808138,1705420754443,-157.09726562,0.00046575,120]
[311808139,1705420754466,-155.52659299,0.00046575,120]
[311808140,1705420754490,-11139.77837668,0.000466,120]
[311808141,1705420754512,-1027.57076674,0.000466,120]
[311808142,1705420754538,-9709.41702961,0.000466,120]
[311808143,1705420754560,-185.0,0.00046623,90]
[311808144,1705420754583,-293.0,0.00046633,90]
[311808145,1705420754607,-5999.999999,0.000468,120]
[311808146,1705420754634,-350.0,0.00046904,120]
[311808147,1705420754659,-500.0,0.00046987,33]
[311808148,1705420754685,-50000.0,0.00047,120]
[311808149,1705420754711,-2330.70614803,0.00047,120]
[311808150,1705420754737,-250.0,0.00047,60]
[311808151,1705420754761,-30000.0,0.00047,120]
[311808152,1705420754786,-600.0,0.00047,120]
[311808153,1705420754810,-300.0,0.00047,48]
[311808154,1705420754834,-1000.0,0.00047,60]
[311808155,1705420754858,-400.0,0.00047452,120]
[311808156,1705420754882,-200.0,0.000475,60]
[311808157,1705420754906,-198.16901513,0.0004768,120]
[311808158,1705420754932,-205.0,0.00047788,33]
[311808159,1705420754957,-350.0,0.0004789,120]
[311808160,1705420754982,-10590.667558,0.00047945,120]
[311808161,1705420755008,-85990.192916,0.00047945,120]